Cogmind - Beta 16.1 @@@ ROGUE MODE // 2026.03.03 @ 13:58:07 Player: Ceorik Result: Destroyed by H-88 Terminator with Heavy Machine Gun Performance ------------- Evolutions (8) 4000 Regions Visited (17) 3400 Robots Destroyed (73) 365 Value Destroyed (3560) 3560 Prototype IDs (26) 520 Alien Tech Used (2) 400 Bonus (2417) 2417 TOTAL SCORE: 14662 Bonus ------- High Alert Combat Kills 250 Follower Combat Kills 767 Registered with UFD 300 Met Optimus in HQ 500 Met Imprinter 300 Met Zhirov 300 Cogmind --------- Core Integrity 0/1450 Matter 244/400 Energy 190/190 System Corruption 8% Temperature Cool (-100) Movement Hovering (125) Ox1 Location -2/Research Parts ------- > --- POWER (2) -------- Light Quantum Reactor > --- PROPULSION (7) --- Centrium Wheel Improved Antigrav System > --- UTILITY (11) ----- Cryofiber Web Medium Matter Pod > --- WEAPON (3) ------- Gamma Rifle > --- INVENTORY (5) ---- Mobile Refinery Mk. CCLXVII Peak State ------------ > --- POWER ------------ Light Antimatter Reactor Heavy Antimatter Reactor > --- PROPULSION ------- Medium Treads Armored Medium Treads Overtuned Scrapsphere Cooled Nuclear Pulse Thruster > --- UTILITY ---------- Scrap Suit Advanced Cryofiber Web High-capacity Storage Unit Advanced Sensor Array Experimental Signal Interpreter Experimental Propulsion Shielding Layered Light Armor Plating Advanced Hacking Suite Makeshift System Shield Improved System Shield > --- WEAPON ----------- HERF Cannon Enhanced Gauss Cannon > --- INVENTORY -------- Micro Fission Core Advanced Power Amplifier Cryofiber Web Advanced Heat Sink Compact Battery Medium Matter Pod Advanced Sensor Array Advanced Signal Interpreter Makeshift Light Armor Plating Makeshift Kinetic Plating Makeshift Kinetic Plating Advanced Shield Generator Improved Force Field Improved Hacking Suite Mobile Refinery Mk. CCLXVII HERF Cannon HERF Cannon HERF Cannon Hypervelocity Gauss Rifle Enhanced Gauss Cannon [Rating: 112] Favorites ----------- Power Micro Nuclear Core Engine Light Angular Momentum Engine Power Core Micro Nuclear Core Reactor Heavy Antimatter Reactor Propulsion Overtuned Scrapsphere Treads Armored Treads Leg Carbon-fiber Leg Wheel Overtuned Scrapsphere Hover Unit Combat Linear Gravjet Flight Unit Cooled Nuclear Pulse Thruster Utility High-capacity Storage Unit Device Scrap Suit Storage High-capacity Storage Unit Processor Experimental Signal Interpreter Hackware Improved System Shield Protection Makeshift Light Armor Plating Weapon Long-range Missile Launcher Energy Gun Subdweller Laser Energy Cannon Heavy Phase Cannon Ballistic Gun Hypervelocity Gauss Rifle Ballistic Cannon Assault Cannon Launcher Long-range Missile Launcher Special Weapon Mining Laser Slashing Weapon Chainsword Piercing Weapon Lance Build | -11 -10 -10 -8 -8 -6 -6 -6 -6 -5 -5 -5 -5 -5 -4 -4 -3 -2 ------- Run | Yrd Mat Sub Rec Scr Fac Low Low Zio Pro Fac Upp Upp Zhi Pro Fac Res Res Slots Evolved 16 | . . . . . 8 . . . . 2 . . . . 2 2 2 Power 1 | . . . . . 1 . . . . . . . . . . . . Propulsion 5 | . . . . . 2 . . . . . . . . . . 1 2 Utility 9 | . . . . . 5 . . . . 2 . . . . 2 . . Weapon 1 | . . . . . . . . . . . . . . . . 1 . Parts Attached 127 | 7 4 8 5 3 24 5 3 5 . 6 4 8 5 2 20 2 16 Power 16 | 1 1 1 1 . 4 1 . . . 1 . 1 1 . 2 . 2 Engine 8 | 1 1 1 1 . 2 1 . . . . . 1 . . . . . Core 5 | . . . . . 2 . . . . 1 . . . . 1 . 1 Reactor 3 | . . . . . . . . . . . . . 1 . 1 . 1 Propulsion 30 | 2 2 2 1 1 7 . . 1 . . 1 . 1 . 3 2 7 Treads 12 | 2 . 2 . . 6 . . . . . . . . . 1 . 1 Leg 3 | . . . . . . . . . . . 1 . . . . 1 1 Wheel 9 | . 2 . 1 1 1 . . 1 . . . . . . 2 . 1 Hover 4 | . . . . . . . . . . . . . . . . . 4 Flight 2 | . . . . . . . . . . . . . 1 . . 1 . Utility 49 | 2 1 1 1 1 7 2 2 4 . 4 2 4 2 1 10 . 5 Device 28 | 1 . 1 . 1 5 2 1 3 . . 2 2 1 1 4 . 4 Storage 3 | 1 1 . . . . . . . . . . . . . . . 1 Processor 1 | . . . . . 1 . . . . . . . . . . . . Hackware 5 | . . . . . . . . . . 3 . . . . 2 . . Protection 12 | . . . 1 . 1 . 1 1 . 1 . 2 1 . 4 . . Artifact . | . . . . . . . . . . . . . . . . . . Weapon 32 | 2 . 4 2 1 6 2 1 . . 1 1 3 1 1 5 . 2 Energy Gun 9 | 1 . 3 . . 3 . . . . . . 1 . . . . 1 Energy Cannon 7 | . . . . . . . . . . 1 1 . . 1 4 . . Ballistic Gun 6 | 1 . . . 1 1 . 1 . . . . 1 1 . . . . Ballistic Cannon 4 | . . . 1 . 1 1 . . . . . . . . 1 . . Launcher 2 | . . 1 . . . 1 . . . . . . . . . . . Special Weapon 2 | . . . 1 . . . . . . . . 1 . . . . . Impact Weapon . | . . . . . . . . . . . . . . . . . . Slashing Weapon 1 | . . . . . 1 . . . . . . . . . . . . Piercing Weapon 1 | . . . . . . . . . . . . . . . . . 1 Special Melee Weapon . | . . . . . . . . . . . . . . . . . . Unidentified Prototypes 10 | . . . . . 1 . . 2 . 1 . . 5 . 1 . . Corrupted Parts 3 | . . . . . . . . . . . . . . . 3 . . System Corruption 21 | . . . . . . . . . . . . . . . 21 . . Parts Lost 50 | . 2 3 3 . 3 1 . . . 1 4 3 . . 18 . 12 Power 7 | . 1 1 1 . 2 . . . . . . 1 . . 1 . . Propulsion 10 | . 1 1 1 . . . . . . . 1 . . . . . 6 Utility 21 | . . . . . 1 1 . . . 1 1 1 . . 11 . 5 Weapon 12 | . . 1 1 . . . . . . . 2 1 . . 6 . 1 Highest Loss Streak 9 | . 2 2 3 . 2 1 . . . 1 4 3 . . 6 . 9 To Critical Strikes 2 | . . . . . . . . . . . . . . . 2 . . Average Backups 17 | 1 8 18 17 18 16 17 18 19 18 18 18 18 19 19 18 4 4 Power 1 | . 1 2 2 1 . . 1 . 1 1 2 1 1 1 . . . Propulsion 1 | . 1 2 3 3 1 1 1 1 1 . . . . . . 1 . Utility 11 | . 3 7 7 8 9 10 12 13 13 12 12 13 14 16 13 3 2 Weapon 3 | . 2 4 3 4 5 4 4 3 3 3 4 3 4 1 3 . . Tool/Special . | . . . . . . . . . . . . . . . . . . Unused Backups 38 | . . 2 7 8 3 1 . 3 1 1 1 2 1 . 8 . . Power 4 | . . 1 . 2 . . . . . . . . . . 1 . . Propulsion 6 | . . . 2 1 . . . 1 . . . . . . 2 . . Utility 16 | . . 1 3 4 . . . 2 1 . 1 . 1 . 3 . . Weapon 12 | . . . 2 1 3 1 . . . 1 . 2 . . 2 . . Tool/Special . | . . . . . . . . . . . . . . . . . . Average Slot Usage (%) 89 | . 100 99 97 100 91 92 93 86 86 83 87 87 78 94 89 10 24 Engine 5 | . 14 13 13 14 8 2 6 . . . . 2 5 5 1 . . Core 5 | . . . . . 4 9 6 12 13 11 11 8 3 . 1 . . Reactor 1 | . . . . . . . . . . . . . 1 5 6 . . Treads 8 | . 16 14 14 6 12 13 13 7 6 5 5 5 5 5 5 . . Leg 1 | . . . . . . . . . . . 4 5 5 5 2 2 4 Wheel 11 | . 11 13 13 21 13 13 13 12 13 11 5 5 5 5 6 . . Device 18 | . 14 14 12 14 21 25 25 25 25 14 22 20 17 17 14 4 13 Storage 7 | . 14 14 13 14 6 6 6 6 6 5 5 5 5 5 4 . . Processor 3 | . . . . . 5 6 6 6 6 5 5 5 5 5 4 . . Hackware 4 | . . . . . . . . . . 10 11 11 11 11 14 . . Protection 2 | . . . . . 3 . . . . 3 . 2 4 5 9 . . Energy Gun 3 | . 14 25 15 6 6 . . . . . . 2 . 1 . . . Energy Cannon 1 | . . . . . . . . . . 8 5 2 . 3 3 . . Ballistic Gun 2 | . 14 2 4 7 3 . . . . . . 2 . 5 1 . . Ballistic Cannon 3 | . . . 5 14 2 . . . 2 2 . . . . 4 . . Launcher 2 | . . . . . . 5 5 6 4 . 4 2 . . . . . Slashing Weapon 1 | . . . . . . 5 5 5 4 . . . . . . . . Peak Build Rating 112 | 7 8 14 14 20 66 66 66 77 78 90 90 84 90 95 112 22 60 Average Rating 60 | 4 7 11 11 16 58 64 65 69 69 85 79 80 72 93 105 18 38 On Entrance 47 | . 7 8 12 14 20 62 66 66 70 69 90 81 79 90 95 2 22 Avg Prop Armor Cover (%) 12 | . 12 14 13 12 15 17 17 11 9 5 12 11 14 11 10 22 21 Naked Turns 30 | . . . . . . . . . . . . . . . 26 . 4 Heaviest Build 110 | 15 50 58 54 53 74 77 75 73 73 93 85 90 89 93 110 1 24 Greatest Support 56 | 40 40 16 40 26 26 24 24 36 36 36 8 8 8 8 40 8 56 Greatest Overweight (x) 13 | 3 4 3 3 3 3 3 3 8 2 2 10 11 11 11 13 . 1 Average Overweight (x) 3 | . 3 3 2 1 2 2 2 1 1 1 9 9 8 10 7 . . Largest Inventory Capacity 20 | 8 20 20 20 20 20 20 20 20 20 20 20 20 20 20 20 5 5 Average Capacity 19 | 7 18 20 19 20 20 20 20 20 20 20 20 20 20 20 19 5 5 Most Carried 20 | 3 13 20 20 20 20 20 20 20 20 20 20 20 20 20 20 4 5 Average Carried 18 | 1 8 18 18 19 19 19 19 19 19 19 18 18 19 19 18 4 4 Final Capacity 20 | 8 20 20 20 20 20 20 20 20 20 20 20 20 20 20 5 5 5 Final Carried 20 | 3 11 20 20 20 20 20 20 20 20 20 20 18 18 20 5 4 1 Scrap Suit Usage (%) 48 | . . . . . 81 99 99 92 100 100 96 34 . 3 19 . . Parts Cannibalized 18 | . . . . . 8 . 1 . . 2 . 1 . . 6 . . Class Distribution -------------------- 40% | Mutant 29% | Hacker-Mutant 22% | Scavenger-Mutant 4% | Derelict-Mutant Dominant Class ---------------- Mutant | -10/Materials Scavenger-Mutant | -10/Subcaves Scavenger-Mutant | -8/Recycling Mutant | -8/Scraptown Scavenger-Mutant | -6/Factory Mutant | -6/Lower Caves Mutant | -6/Lower Caves Mutant | -6/Zion Mutant | -5/Proximity Caves Hacker-Mutant | -5/Factory Hacker-Mutant | -5/Upper Caves Hacker-Mutant | -5/Upper Caves Hacker-Mutant | -5/Zhirov Derelict-Mutant | -4/Proximity Caves Hacker-Mutant | -4/Factory Mutant | -3/Research Mutant | -2/Research Resources | -11 -10 -10 -8 -8 -6 -6 -6 -6 -5 -5 -5 -5 -5 -4 -4 -3 -2 ----------- Run | Yrd Mat Sub Rec Scr Fac Low Low Zio Pro Fac Upp Upp Zhi Pro Fac Res Res Matter Collected 3775 | 212 311 145 453 30 642 391 181 110 120 145 80 95 . 120 650 . 90 Remotely . | . . . . . . . . . . . . . . . . . . Salvage Created 3190 | 29 118 187 109 . 686 243 76 . 87 302 278 50 . . 1025 . . Parts 146 | 3 4 15 8 . 31 17 5 . . 10 5 1 . . 47 . . Haulers Intercepted 2 | . 1 . . . . . . . . 1 . . . . . . . Recyclers Shooed 3 | . . . 1 . 2 . . . . . . . . . . . . Parts Field Recycled . | . . . . . . . . . . . . . . . . . . Retrieved Matter . | . . . . . . . . . . . . . . . . . . Parts Self-Destructed 29 | . . 9 . . . 12 3 . . . 4 1 . . . . . Prevented . | . . . . . . . . . . . . . . . . . . Parts Restored . | . . . . . . . . . . . . . . . . . . Kills | -11 -10 -10 -8 -8 -6 -6 -6 -6 -5 -5 -5 -5 -5 -4 -4 -3 -2 ------- Run | Yrd Mat Sub Rec Scr Fac Low Low Zio Pro Fac Upp Upp Zhi Pro Fac Res Res Combat Hostiles Destroyed 62 | . . 7 2 . 12 7 5 . 1 4 4 1 . . 19 . . Melee 2 | . . . . . . 1 . . 1 . . . . . . . . Guns 19 | . . 3 2 . 11 . 1 . . . . 1 . . 1 . . Cannons 16 | . . . . . . . . . . 3 3 . . . 10 . . AOE 19 | . . 4 . . . 6 4 . . 1 . . . . 4 . . Classes Destroyed 14 | 1 2 3 1 . 3 1 . . . . . . . . 3 . . Worker 2 | . . . . . . . . . . . . . . . 2 . . Tunneler 1 | 1 . . . . . . . . . . . . . . . . . Hauler 2 | . 1 . . . . . . . . 1 . . . . . . . Recycler 1 | . 1 . . . . . . . . . . . . . . . . Operator 1 | . . . . . . . . . . . . . . . 1 . . Turret 2 | . . 2 . . . . . . . . . . . . . . . Swarmer 15 | . . 4 . . 3 4 4 . . . . . . . . . . Grunt 13 | . . . . . 5 . 1 . . . 4 . . . 3 . . Duelist 1 | . . . . . . . . . . . . . . . 1 . . Sentry 6 | . . . 2 . 2 1 . . 1 . . . . . . . . Hunter 13 | . . . . . . 2 . . . 2 . 1 . . 8 . . Programmer 11 | . . . . . 2 . . . . 2 . . . . 7 . . Subdweller 3 | . . 3 . . . . . . . . . . . . . . . Scrapoid 2 | . . . . . 2 . . . . . . . . . . . . Best Kill Streak 8 | 1 1 6 2 . 4 3 4 . 1 3 4 1 . . 8 . . Combat Bots Only 8 | . . 4 2 . 4 3 4 . 1 2 4 1 . . 8 . . Max Kills in Single Turn 4 | 1 1 2 1 . 1 2 3 . 1 2 1 1 . . 4 . . Gunslinging . | . . . . . . . . . . . . . . . . . . Exploded 4 | . . 2 . . . 2 3 . . 1 . . . . 4 . . Melee 1 | . . . . . . 1 . . 1 . . . . . . . . Uniques/NPCs Destroyed . | . . . . . . . . . . . . . . . . . . Combat | -11 -10 -10 -8 -8 -6 -6 -6 -6 -5 -5 -5 -5 -5 -4 -4 -3 -2 -------- Run | Yrd Mat Sub Rec Scr Fac Low Low Zio Pro Fac Upp Upp Zhi Pro Fac Res Res Hostile Shots Fired 1033 | . . 45 30 . 103 60 14 . 39 50 80 40 . . 336 . 236 Missed 349 | . . 17 10 . 41 19 5 . 14 13 19 6 . . 117 . 88 Hits 684 | . . 28 20 . 62 41 9 . 25 37 61 34 . . 219 . 148 Projectile 684 | . . 28 20 . 62 41 9 . 25 37 61 34 . . 219 . 148 AOE 1 | . . . . . . . . . . . . . . . 1 . . Critical Strikes 42 | . . 3 2 . 4 . . . . 3 7 2 . . 15 . 6 Actively Blocked 1 | . . . . . . . . . . . . . . . 1 . . Part Disruptions 1 | . . . . . . . . . . . . . . . 1 . . Damage Taken 12985 | . 155 571 301 . 859 604 155 . 489 778 1167 509 . . 4108 . 3289 Core 2465 | . . 97 90 . 120 79 35 . 19 123 95 20 . . 331 . 1456 Absorbed by Shields 119 | . . . . . . . . . . . . 31 . . 88 . . Redirected to Shielding 271 | . . . . . 49 59 . . . . . . . . 163 . . Ignored by Resistances 200 | . . . . . . . . . . . . 33 . . 167 . . Regen/Repaired (Parts) 661 | . . . . . 41 . 10 541 . 11 . 10 . . 48 . . Core Remaining (%) 72 | 100 . . . 25 . . . . 70 . . . . 76 62 100 . Volleys Fired 300 | 1 5 31 20 . 53 12 9 . . 27 23 17 . . 100 . 2 Largest 2 | 2 2 2 2 . 2 2 2 . . 1 2 1 . . 2 . 1 Hottest 180 | 70 70 120 160 . 149 113 99 . . 90 180 90 . . 176 . 75 Shots Fired 391 | 2 10 43 27 . 97 20 13 . . 27 31 17 . . 102 . 2 Gun 177 | 2 10 37 17 . 75 8 8 . . . . 2 . . 16 . 2 Cannon 182 | . . . . . 22 1 . . . 27 31 15 . . 86 . . Launcher 22 | . . 6 . . . 11 5 . . . . . . . . . . Special 10 | . . . 10 . . . . . . . . . . . . . . Kinetic 133 | 1 5 16 6 . 41 1 4 . . . . . . . 59 . . Thermal 193 | 1 5 27 21 . 56 8 4 . . 22 29 17 . . 3 . . Explosive 16 | . . . . . . 11 5 . . . . . . . . . . Electromagnetic 49 | . . . . . . . . . . 5 2 . . . 40 . 2 Robot Hit Streak 13 | 1 9 13 5 . 10 6 4 . . 3 7 6 . . 9 . . Robot Miss Streak 6 | 1 1 3 1 . 5 3 3 . . 6 1 3 . . 3 . 2 Penetration Max 3 | . . . . . 1 . 1 . . . . . . . 3 . . Secondary Targets 3 | . . . . . 3 . . . . . . . . . . . . Max Gunslinging Chain 1 | . . . . . 1 . . . . . . . . . . . . Shots Hit Robots 217 | 1 9 19 8 . 55 16 5 . 2 10 22 11 . . 59 . . Core Hits 122 | 1 4 14 3 . 25 16 8 . 2 7 6 2 . . 33 . 1 Critical Kills 1 | . . . . . . . . . . . . . . . 1 . . Critical Parts Destroyed 3 | . . . . . . . . . . . . . . . 3 . . Critical Strikes 17 | . . 1 . . 2 1 1 . . . . 1 . . 11 . . Burn 5 | . . 1 . . 1 1 1 . . . . 1 . . . . . Destroy 4 | . . . . . . . . . . . . . . . 4 . . Blast 8 | . . . . . 1 . . . . . . . . . 7 . . Melee Attacks 11 | . . . . . 2 5 . . 2 . . . . . . . 2 Impact . | . . . . . . . . . . . . . . . . . . Slashing 9 | . . . . . 2 5 . . 2 . . . . . . . . Piercing 2 | . . . . . . . . . . . . . . . . . 2 Sneak Attacks . | . . . . . . . . . . . . . . . . . . Combat Hostiles . | . . . . . . . . . . . . . . . . . . Follow-up Attacks . | . . . . . . . . . . . . . . . . . . Damage Inflicted 9212 | 12 113 620 140 . 1374 1135 520 . 63 728 778 359 . . 3336 . 34 Guns 2062 | 12 113 195 140 . 1225 97 125 . . . . 50 . . 74 . 31 Cannons 3613 | . . . . . 149 21 . . . 385 778 309 . . 1971 . . Explosions 3258 | . . 425 . . . 810 395 . . 343 . . . . 1285 . . Melee 270 | . . . . . . 207 . . 63 . . . . . . . . Ramming 9 | . . . . . . . . . . . . . . . 6 . 3 Kinetic 2252 | 12 63 536 40 . 508 21 69 . . . . . . . 1003 . . Thermal 3899 | . 50 84 100 . 866 97 56 . . 350 758 359 . . 1179 . . Explosive 1688 | . . . . . . 810 395 . . 343 . . . . 140 . . Electromagnetic 1094 | . . . . . . . . . . 35 20 . . . 1008 . 31 Impact . | . . . . . . . . . . . . . . . . . . Slashing 270 | . . . . . . 207 . . 63 . . . . . . . . Piercing . | . . . . . . . . . . . . . . . . . . Highest Corruption 37 | . . . . . 1 1 1 1 . 1 1 1 1 1 37 . 8 Average Corruption 2 | . . . . . 1 1 1 1 . 1 1 1 1 1 8 . 7 Corruption Purged . | . . . . . . . . . . . . . . . . . . Corruption Blocked . | . . . . . . . . . . . . . . . . . . Effects 80 | . . . . . 8 4 6 . . 1 7 5 2 4 38 . 5 Message Errors 14 | . . . . . 1 . . . . . 2 2 . 1 8 . . Matter Fused 16 | . . . . . 2 2 . . . . 1 1 . 1 8 . 1 Heat Flow Errors 7 | . . . . . 2 . 2 . . . 1 . . . 1 . 1 Energy Discharges 12 | . . . . . . 1 1 . . . 2 2 1 . 4 . 1 Parts Rejected 2 | . . . . . . . . . . . . . . . 2 . . Parts Fused 2 | . . . . . 1 . . . . . . . . . 1 . . Data Loss (minor) 16 | . . . . . 2 1 3 . . 1 1 . 1 1 6 . . Data Loss (major) 2 | . . . . . . . . . . . . . . . 1 . 1 Misfires 1 | . . . . . . . . . . . . . . . 1 . . Alerts 5 | . . . . . . . . . . . . . . 1 3 . 1 Misdirections 1 | . . . . . . . . . . . . . . . 1 . . Weapon Failures 2 | . . . . . . . . . . . . . . . 2 . . Overload Shots . | . . . . . . . . . . . . . . . . . . Overflow Damage 364 | . . 10 . . . 15 12 . . 82 11 . . . 234 . . Projectiles 144 | . . . . . . . . . . 61 11 . . . 72 . . Explosions 220 | . . 10 . . . 15 12 . . 21 . . . . 162 . . Melee . | . . . . . . . . . . . . . . . . . . Knockbacks 9 | . . . . . . 2 . . . . . . . . 7 . . Impact . | . . . . . . . . . . . . . . . . . . Kinetic 8 | . . . . . . 2 . . . . . . . . 6 . . Secondary 1 | . . . . . . . . . . . . . . . 1 . . Self-Inflicted Damage 222 | . . 47 . . . . . . . 82 . . . . 93 . . Shots 4 | . . 1 . . . . . . . 1 . . . . 2 . . Rammed 1 | . . . . . . . . . . . . . . . 1 . . Targets Rammed 2 | . . . . . . . . . . . . . . . 1 . 1 Kicked 1 | . . . . . . . . . . . . . . . . . 1 Crushed . | . . . . . . . . . . . . . . . . . . Highest Temperature 348 | 9 36 262 100 . 115 190 148 . . 288 302 348 . . 22 . 219 Average Temperature 92 | 6 16 139 35 . 41 95 73 . . 91 129 195 . . 11 . 122 Received Heat Transfer 2089 | . . 693 144 . 162 45 36 . 174 . 637 . . . 72 . 126 Effects 3 | . . . . . . . . . . . . 3 . . . . . Energy Bleed 3 | . . . . . . . . . . . . 3 . . . . . Siege Activations . | . . . . . . . . . . . . . . . . . . Martial Activations . | . . . . . . . . . . . . . . . . . . Shielding Activations . | . . . . . . . . . . . . . . . . . . Robots Disrupted . | . . . . . . . . . . . . . . . . . . Combat Hostiles . | . . . . . . . . . . . . . . . . . . Robots Corrupted 4 | . . . . . . . . . . . . . . . 4 . . Combat Hostiles 4 | . . . . . . . . . . . . . . . 4 . . Parts Fried 6 | . . . . . . . . . . . . . . . 6 . . Impact Corruptions . | . . . . . . . . . . . . . . . . . . Robots Melted 2 | . . . . . 1 . . . . . 1 . . . . . . Combat Hostiles 2 | . . . . . 1 . . . . . 1 . . . . . . Parts Melted 16 | . 1 . . . 7 . . . . . 4 4 . . . . . Heat Transferred 5146 | . 148 309 125 . 1842 259 185 . . 296 814 481 . . 687 . . Parts Sabotaged . | . . . . . . . . . . . . . . . . . . Parts Stolen . | . . . . . . . . . . . . . . . . . . Parts Stripped . | . . . . . . . . . . . . . . . . . . Power Chain Reactions . | . . . . . . . . . . . . . . . . . . Alert | -11 -10 -10 -8 -8 -6 -6 -6 -6 -5 -5 -5 -5 -5 -4 -4 -3 -2 ------- Run | Yrd Mat Sub Rec Scr Fac Low Low Zio Pro Fac Upp Upp Zhi Pro Fac Res Res Maximum Alert Level 3 | . . . . . . . . . . . . . . . 3 2 1 Low Security (%) 78 | 100 100 . 100 . 100 . . . . 100 . . . . 45 . 80 Level 1 15 | . . . . . . . . . . . . . . . 40 . 19 Level 2 . | . . . . . . . . . . . . . . . . 100 . Level 3 4 | . . . . . . . . . . . . . . . 13 . . Level 4 . | . . . . . . . . . . . . . . . . . . Level 5 . | . . . . . . . . . . . . . . . . . . High Security . | . . . . . . . . . . . . . . . . . . Max Security . | . . . . . . . . . . . . . . . . . . Peak Influence 852 | 5 11 . 36 . 111 . . . . 141 . . . . 852 418 364 Initial 418 | . . . 36 . . . . . . 32 . . . . . 418 229 Average 110 | . . . 3 . 34 . . . . 45 . . . . 234 413 161 Influence Increases 3447 | 5 27 150 50 . 394 180 140 . 185 243 90 30 . . 1452 . 501 Destroy 0b10 Robot/C 1500 | . . 120 40 . 260 140 100 . 20 80 80 20 . . 540 . 100 Destroy 0b10 Robot/NC 55 | 5 10 . . . . 5 . . . 5 . . . . 25 . 5 Destroy Leader 296 | . 2 . . . 60 20 10 . . 22 10 10 . . 122 . 40 Allied During Kill 202 | . . . . . 14 . . . . . . . . . 105 . 83 Successful Hack 44 | . 15 . 5 . 4 . . . . . . . . . 20 . . Disable Machine 285 | . . . . . 30 . . . . 30 . . . . 210 . 15 Destroy Structure 420 | . . . 5 . 11 . . . . 76 . . . . 280 . 48 Partial Spotted 15 | . . . . . . . . . . . . . . . 15 . . Lose Combat Pursuer 630 | . . 30 . . 15 15 30 . 165 30 . . . . 135 . 210 Influence Decreases 3143 | 5 27 74 126 . 378 196 85 55 133 295 90 30 . . 654 390 605 Entered New Map 681 | . . . 40 . . 7 . 55 . 20 . . . . . 380 179 Time Decay 1943 | 5 27 74 86 . 328 180 85 . 133 265 70 30 . . 444 10 206 Lost Part 350 | . . . . . 30 . . . . 10 20 . . . 170 . 120 Lost Ally 169 | . . . . . 20 9 . . . . . . . . 40 . 100 Squads Dispatched 21 | . . . . . 4 . . . 1 2 . . . . 8 . 6 Investigation 5 | . . . . . 2 . . . . . . . . . 1 . 2 Extermination 10 | . . . . . 2 . . . . 2 . . . . 5 . 1 Reinforcement 5 | . . . . . . . . . . . . . . . 2 . 3 Assault 1 | . . . . . . . . . 1 . . . . . . . . Garrison . | . . . . . . . . . . . . . . . . . . Intercept . | . . . . . . . . . . . . . . . . . . Searches Triggered . | . . . . . . . . . . . . . . . . . . Construction Impeded 2 | . . . . . . . . . . . . . . . 1 . 1 Haulers Reinforced . | . . . . . . . . . . . . . . . . . . Active Scanning Responses . | . . . . . . . . . . . . . . . . . . Cargo Convoy Interrupts . | . . . . . . . . . . . . . . . . . . Stealth | -11 -10 -10 -8 -8 -6 -6 -6 -6 -5 -5 -5 -5 -5 -4 -4 -3 -2 --------- Run | Yrd Mat Sub Rec Scr Fac Low Low Zio Pro Fac Upp Upp Zhi Pro Fac Res Res Distress Signals 7 | . 1 . . . 1 . . . . . . . . . 3 . 2 Communications Jammed . | . . . . . . . . . . . . . . . . . . Distress Signals . | . . . . . . . . . . . . . . . . . . Times Spotted 143 | . 1 9 2 . 16 6 7 . 9 6 4 1 . . 57 . 25 Peak Tracking Total 14 | . 1 4 2 . 5 3 4 . 7 2 4 1 . . 14 . 13 Tactical Retreats 22 | . . 1 . . 1 1 2 . 6 1 . . . . 3 . 7 Traps | -11 -10 -10 -8 -8 -6 -6 -6 -6 -5 -5 -5 -5 -5 -4 -4 -3 -2 ------- Run | Yrd Mat Sub Rec Scr Fac Low Low Zio Pro Fac Upp Upp Zhi Pro Fac Res Res Traps Triggered 5 | . 1 . . . . . . . . . . . . . 1 . 3 Indirectly . | . . . . . . . . . . . . . . . . . . Trap Hack Attempts . | . . . . . . . . . . . . . . . . . . Triggered . | . . . . . . . . . . . . . . . . . . Disarmed . | . . . . . . . . . . . . . . . . . . Reprogrammed 8 | . 4 . . . 4 . . . . . . . . . . . . Reused . | . . . . . . . . . . . . . . . . . . Traps Extracted . | . . . . . . . . . . . . . . . . . . Installed . | . . . . . . . . . . . . . . . . . . Triggered . | . . . . . . . . . . . . . . . . . . Machines | -11 -10 -10 -8 -8 -6 -6 -6 -6 -5 -5 -5 -5 -5 -4 -4 -3 -2 ---------- Run | Yrd Mat Sub Rec Scr Fac Low Low Zio Pro Fac Upp Upp Zhi Pro Fac Res Res Machines Disabled 23 | . . 4 . . 2 . . . . 2 . . . . 14 . 1 Max in Single Turn 6 | . . 3 . . 1 . . . . 2 . . . . 6 . . Garrison Access 1 | . . . . . . . . . . . . . . . 1 . . Machines Repaired . | . . . . . . . . . . . . . . . . . . Machines Dismantled . | . . . . . . . . . . . . . . . . . . Machines Sabotaged . | . . . . . . . . . . . . . . . . . . Overloaded Fab Kills . | . . . . . . . . . . . . . . . . . . Hacking | -11 -10 -10 -8 -8 -6 -6 -6 -6 -5 -5 -5 -5 -5 -4 -4 -3 -2 --------- Run | Yrd Mat Sub Rec Scr Fac Low Low Zio Pro Fac Upp Upp Zhi Pro Fac Res Res Machines Accessed 44 | . 4 1 9 5 6 . . . . 5 2 1 4 . 5 . 2 Terminals 13 | . 4 . 1 . 2 . . . . 2 . . . . 3 . 1 Fabricators 1 | . . . . . 1 . . . . . . . . . . . . Repair Stations 1 | . . . . . . . . . . 1 . . . . . . . Recycling Units 11 | . . . 6 . 3 . . . . . . . . . 1 . 1 Scanalyzers 1 | . . . . . . . . . . 1 . . . . . . . Garrison Access 2 | . . . . . . . . . . 1 . . . . 1 . . Total Hacks 138 | . 15 4 36 24 12 . . . . 9 3 1 17 . 14 . 3 Successful 107 | . 8 4 34 24 8 . . . . 2 3 1 17 . 5 . 1 Failed 30 | . 6 . 2 . 4 . . . . 7 . . . . 9 . 2 Catastrophic 4 | . 1 . . . 1 . . . . . . . . . 1 . 1 Database Lockouts 1 | . 1 . . . . . . . . . . . . . . . . Manual 30 | . 11 . 2 . 5 . . . . 3 . . . . 7 . 2 Terminals 38 | . 15 . 2 . 6 . . . . 3 . . . . 10 . 2 Fabricators 1 | . . . . . 1 . . . . . . . . . . . . Repair Stations 2 | . . . . . . . . . . 2 . . . . . . . Recycling Units 18 | . . . 10 . 5 . . . . . . . . . 2 . 1 Scanalyzers 2 | . . . . . . . . . . 2 . . . . . . . Garrison Access 4 | . . . . . . . . . . 2 . . . . 2 . . Terminal Hacks 79 | . 4 4 25 24 1 . . . . . 3 1 17 . . . . Record 52 | . . 4 24 17 . . . . . . 2 . 5 . . . . Part Schematic 4 | . . . . . . . . . . . . . 4 . . . . Robot Analysis 12 | . 1 . . 7 . . . . . . . . 4 . . . . Prototype ID Bank 4 | . . . . . . . . . . . . . 4 . . . . Open Door 2 | . . . . . . . . . . . 1 1 . . . . . Locate Traps 1 | . 1 . . . . . . . . . . . . . . . . Reprogram Traps 2 | . 1 . . . 1 . . . . . . . . . . . . Zone Layout 2 | . 1 . 1 . . . . . . . . . . . . . . Fabricator Hacks 1 | . . . . . 1 . . . . . . . . . . . . Network Status 1 | . . . . . 1 . . . . . . . . . . . . Repair Station Hacks 1 | . . . . . . . . . . 1 . . . . . . . Scan Component 1 | . . . . . . . . . . 1 . . . . . . . Recycling Unit Hacks 11 | . . . 8 . 2 . . . . . . . . . 1 . . Report Inventory 9 | . . . 6 . 2 . . . . . . . . . 1 . . Retrieve Components 2 | . . . 2 . . . . . . . . . . . . . . Scanalyzer . | . . . . . . . . . . . . . . . . . . Garrison Access Hacks 1 | . . . . . . . . . . . . . . . 1 . . Seal Access 1 | . . . . . . . . . . . . . . . 1 . . Unauthorized Hacks 14 | . 4 . 1 . 4 . . . . 1 . . . . 3 . 1 Terminals 10 | . 4 . 1 . 2 . . . . 1 . . . . 2 . . Botnet 10 | . 4 . 1 . 2 . . . . 1 . . . . 2 . . Fabricators . | . . . . . . . . . . . . . . . . . . Repair Stations . | . . . . . . . . . . . . . . . . . . Recycling Units 4 | . . . . . 2 . . . . . . . . . 1 . 1 Fedlink 1 | . . . . . 1 . . . . . . . . . . . . Scrapoids 3 | . . . . . 1 . . . . . . . . . 1 . 1 Scanalyzers . | . . . . . . . . . . . . . . . . . . Garrison Access . | . . . . . . . . . . . . . . . . . . Data Cores Recovered 1 | . 1 . . . . . . . . . . . . . . . . Used . | . . . . . . . . . . . . . . . . . . Hacking Detections 19 | . 4 . 4 . 2 . . . . 5 . . . . 3 . 1 Full Trace Events . | . . . . . . . . . . . . . . . . . . Feedback Events . | . . . . . . . . . . . . . . . . . . Feedback Blocked . | . . . . . . . . . . . . . . . . . . Robot Schematics Acquired . | . . . . . . . . . . . . . . . . . . Robots Built . | . . . . . . . . . . . . . . . . . . Authchips . | . . . . . . . . . . . . . . . . . . Time . | . . . . . . . . . . . . . . . . . . Total Robot Build Rating . | . . . . . . . . . . . . . . . . . . Part Schematics Acquired 4 | . . . . . . . . . . . . . 4 . . . . Parts Built . | . . . . . . . . . . . . . . . . . . Authchips . | . . . . . . . . . . . . . . . . . . Time . | . . . . . . . . . . . . . . . . . . Total Part Build Rating . | . . . . . . . . . . . . . . . . . . Part Studies Acquired . | . . . . . . . . . . . . . . . . . . Parts Repaired . | . . . . . . . . . . . . . . . . . . Time . | . . . . . . . . . . . . . . . . . . Parts Recycled . | . . . . . . . . . . . . . . . . . . Recycled Matter . | . . . . . . . . . . . . . . . . . . Retrieved Matter . | . . . . . . . . . . . . . . . . . . Retrieved Components 7 | . . . 7 . . . . . . . . . . . . . . Parts Scanalyzed . | . . . . . . . . . . . . . . . . . . Part Schematics Acquired . | . . . . . . . . . . . . . . . . . . Parts Damaged . | . . . . . . . . . . . . . . . . . . Bothacking | -11 -10 -10 -8 -8 -6 -6 -6 -6 -5 -5 -5 -5 -5 -4 -4 -3 -2 ------------ Run | Yrd Mat Sub Rec Scr Fac Low Low Zio Pro Fac Upp Upp Zhi Pro Fac Res Res Used RIF Installer . | . . . . . . . . . . . . . . . . . . Robots Hacked . | . . . . . . . . . . . . . . . . . . Non-combat . | . . . . . . . . . . . . . . . . . . Combat . | . . . . . . . . . . . . . . . . . . Robot Hacks Applied . | . . . . . . . . . . . . . . . . . . Relay Couplers Released . | . . . . . . . . . . . . . . . . . . Fabnet Peak Effective % . | . . . . . . . . . . . . . . . . . . Robots Rewired 1 | . . . . . . . . . . . . . . . 1 . . Allies Hacked 1 | . . . . . . . . . . . . . . . 1 . . Hacks Repelled . | . . . . . . . . . . . . . . . . . . Allies | -11 -10 -10 -8 -8 -6 -6 -6 -6 -5 -5 -5 -5 -5 -4 -4 -3 -2 -------- Run | Yrd Mat Sub Rec Scr Fac Low Low Zio Pro Fac Upp Upp Zhi Pro Fac Res Res Total Allies 16 | . . . . . 5 . . . . . . . . . 6 . 5 Largest Group 5 | . . . . . 5 . . . . . . . . . 5 . 5 Highest-Rated Group 323 | . . . . . 143 . . . . . . . . . 235 . 323 Highest-Rated Ally 67 | . . . . . 31 . . . . . . . . . 47 . 67 Initial UFD Resources 39 | . . . . . 23 30 30 30 33 33 33 33 33 36 36 37 39 Total Orders . | . . . . . . . . . . . . . . . . . . Ally Attacks 165 | . . . . . 24 . . . . . . . . . 98 . 43 Total Damage 3660 | . . . . . 428 . . . . . . . . . 2022 . 1210 Kills 18 | . . . . . 2 . . . . . . . . . 10 . 6 Allies Corrupted . | . . . . . . . . . . . . . . . . . . Allies Melted . | . . . . . . . . . . . . . . . . . . Intel | -11 -10 -10 -8 -8 -6 -6 -6 -6 -5 -5 -5 -5 -5 -4 -4 -3 -2 ------- Run | Yrd Mat Sub Rec Scr Fac Low Low Zio Pro Fac Upp Upp Zhi Pro Fac Res Res Active Infowar (turns) 15979 | 20 433 778 788 2158 866 650 1315 1402 1175 841 1050 961 265 941 2014 34 288 Sensors 12834 | . . . . 1032 866 650 1315 1402 1175 841 1050 961 265 941 2014 34 288 Seismic 3145 | 20 433 778 788 1126 . . . . . . . . . . . . . Robot Analysis Total 12 | . 1 . . 7 . . . . . . . . 4 . . . . Derelict Logs Recovered 16 | . . 1 . 4 . 1 . 3 3 . . 2 . 2 . . . Drone Launches 2 | . . . . . . 2 . . . . . . . . . . . Drone Recoveries 1 | . . . . . . 1 . . . . . . . . . . . Exploration | -11 -10 -10 -8 -8 -6 -6 -6 -6 -5 -5 -5 -5 -5 -4 -4 -3 -2 ------------- Run | Yrd Mat Sub Rec Scr Fac Low Low Zio Pro Fac Upp Upp Zhi Pro Fac Res Res Turns Passed 17536 | 93 433 936 881 2158 1270 719 1380 1418 1342 897 1122 996 265 941 2214 34 437 Spaces Moved 11853 | 51 281 566 528 1747 905 554 631 1388 951 702 627 566 159 455 1177 58 507 Core 188 | 17 . . . . . . . . . . . . . . 51 7 113 Treads 74 | 34 35 . 5 . . . . . . . . . . . . . . Legs 17 | . . . . . . . . . . . . . . . . . 17 Wheels 11153 | . 246 566 523 1747 905 554 631 1388 951 702 627 566 159 455 1126 . 7 Hover 84 | . . . . . . . . . . . . . . . . . 84 Flight 337 | . . . . . . . . . . . . . . . . 51 286 Fastest Speed 40 | 50 140 145 105 105 105 109 109 97 97 97 150 150 140 170 50 40 50 Average Speed 124 | 150 143 145 144 121 109 114 120 99 97 106 167 166 152 179 148 49 60 Slowest Speed 260 | 200 160 145 260 145 121 121 121 150 109 109 170 180 180 180 200 50 165 Overloaded Moves . | . . . . . . . . . . . . . . . . . . Propulsion Burnouts . | . . . . . . . . . . . . . . . . . . Robots Hopped . | . . . . . . . . . . . . . . . . . . Potential Cave-ins . | . . . . . . . . . . . . . . . . . . Cave-ins Triggered . | . . . . . . . . . . . . . . . . . . Teleports 1 | . . . . . . . . . . . . . . . 1 . . Exploration Rate (%) 49 | 5 52 25 73 92 20 65 71 86 91 12 79 59 60 56 22 2 16 Regions Visited 17 Branch Regions 11 Pre-discovered Areas 5 | . . 1 . . . . . . . . . . 3 1 . . . Known Exits Taken 11 | . . . . . 1 1 1 1 1 1 1 1 1 1 . 1 . Unknown Exits Taken 6 | 1 1 1 1 1 . . . . . . . . . . 1 . . Scrap Searched 20 | . . . . 3 . 3 3 4 2 . 2 1 . 2 . . . Spaces Dug 49 | . . . 12 . 5 13 12 . . 5 . . . . . . 2 Terrain Destroyed 455 | . . 68 12 . 10 129 39 . . 41 6 6 . . 142 . 2 Melee 4 | . . . . . 2 . . . . . . . . . . . 2 Projectile 72 | . . . 12 . 8 . 1 . . 13 6 6 . . 26 . . AOE 379 | . . 68 . . . 129 38 . . 28 . . . . 116 . . Terrain Rammed . | . . . . . . . . . . . . . . . . . . Walls Destroyed . | . . . . . . . . . . . . . . . . . . Machines Disabled . | . . . . . . . . . . . . . . . . . . Actions | -11 -10 -10 -8 -8 -6 -6 -6 -6 -5 -5 -5 -5 -5 -4 -4 -3 -2 --------- Run | Yrd Mat Sub Rec Scr Fac Low Low Zio Pro Fac Upp Upp Zhi Pro Fac Res Res Total 14189 | 62 299 636 602 1787 1102 605 1232 1428 1357 823 669 601 183 577 1539 61 626 Wait 1578 | 1 1 9 7 7 74 18 581 10 392 67 . 1 . 119 197 1 93 Move 11836 | 50 280 565 527 1746 904 553 630 1387 950 701 626 565 158 454 1176 57 507 Hop . | . . . . . . . . . . . . . . . . . . Pick Up 130 | 3 9 12 23 14 19 3 2 6 1 7 8 3 5 1 14 . . Fast Attach 58 | 7 . 2 5 3 7 . . 2 . 1 1 3 5 1 5 2 14 Attach 61 | . 2 4 4 . 10 2 1 . . 3 5 3 3 . 19 1 4 Detach 13 | . . 2 3 . 2 . . 1 . . . . 2 . 2 . 1 Swap 95 | . 2 8 2 . 12 9 8 11 10 11 3 4 2 1 12 . . Drop 103 | . . 3 11 17 19 3 1 11 2 6 3 5 8 1 11 . 2 Fire 300 | 1 5 31 20 . 53 12 9 . . 27 23 17 . . 100 . 2 Melee 11 | . . . . . 2 5 . . 2 . . . . . . . 2 Ram 1 | . . . . . . . . . . . . . . . 1 . . Kick 1 | . . . . . . . . . . . . . . . . . 1 Crush . | . . . . . . . . . . . . . . . . . . Escape Stasis . | . . . . . . . . . . . . . . . . . . Rewire 2 | . . . . . . . . . . . . . . . 2 . . Trap . | . . . . . . . . . . . . . . . . . . Miscellaneous . | . . . . . . . . . . . . . . . . . . Route ------- -11/Scrapyard -10/Materials (discovered 5 exits: [*Mat x3] / [*Min] / *Sub) -10/Subcaves (discovered 2 exits: [*Mat] / *Rec) -8/Recycling (discovered 2 exits: *Fac / *Scr) -8/Scraptown (discovered 2 exits: *Fac x2) -6/Factory -6/Lower Caves -6/Lower Caves -6/Zion -5/Proximity Caves -5/Factory (discovered 2 exits: *Upp x2) -5/Upper Caves -5/Upper Caves -5/Zhirov -4/Proximity Caves -4/Factory (discovered 2 exits: [*Res] / Arm) -3/Research (discovered 2 exits: *Res x2) -2/Research History --------- Turn | Location | Event 5 | -11/Scrapyard | Discovered new exit (range 16) 94 | -11/Scrapyard | Entered Materials 95 | -10/Materials | Met a group of wandering Federalists 160 | -10/Materials | Central database locked down 192 | -10/Materials | Discovered new exit (range 13) 195 | -10/Materials | Discovered new exit (range 15) 266 | -10/Materials | Discovered new exit (range 15) 307 | -10/Materials | Build established: Mutant 348 | -10/Materials | Discovered new exit (range 13) 351 | -10/Materials | Discovered new exit (range 9) 527 | -10/Materials | Entered Subcaves 528 | -10/Subcaves | Continued accompanying wandering Federalists (2) 528 | -10/Subcaves | Approached by a straggling Scientist 531 | -10/Subcaves | Discovered new exit (range 6) 533 | -10/Subcaves | Ambushed by Subdwellers from Twisted Machinery 802 | -10/Subcaves | Shifting Twisted Machinery released Sub. Monowheel 804 | -10/Subcaves | Shifting Twisted Machinery released Sub. Shrapnel Launcher 863 | -10/Subcaves | Learned location of Zion (-6) 863 | -10/Subcaves | Met a Zionite searching for "candidates" 970 | -10/Subcaves | Build established: Scavenger-Mutant 1231 | -10/Subcaves | Discovered new exit (range 12) 1323 | -10/Subcaves | Visited Clippyterm 1328 | -10/Subcaves | Learned Factory trap positions 1463 | -10/Subcaves | Entered Recycling 1668 | -8/Recycling | Core integrity fell below 50% 1702 | -8/Recycling | Lost 3 parts (1p1n1w) 2250 | -8/Recycling | Discovered new exit (range 15) 2288 | -8/Recycling | Scanned before Scraplab entrance 2308 | -8/Recycling | Entered Scraplab 2321 | -8/Recycling | Discovered new exit (range 2) 2344 | -8/Recycling | Entered Scraptown 2482 | -8/Scraptown | Visited UFD Registry 2482 | -8/Scraptown | Registered with UFD as "Fiberplate" 2524 | -8/Scraptown | Visited Symbiants 2566 | -8/Scraptown | Visited Spacefarers 2682 | -8/Scraptown | Scanned Subdweller tech in exchange for log data 2687 | -8/Scraptown | Learned Research emergency access door positions 2688 | -8/Scraptown | Learned Factory emergency access door positions 2690 | -8/Scraptown | Learned Research trap positions 2691 | -8/Scraptown | Learned 8 Factory zone layouts 2748 | -8/Scraptown | Guru changed UFD alias to "Rustshaft" 2811 | -8/Scraptown | Discovered new exit (range 9) 3048 | -8/Scraptown | Visited Curators Association 3095 | -8/Scraptown | Visited Junk Repository 3139 | -8/Scraptown | Visited Analyses Database 3589 | -8/Scraptown | Build established: Mutant 3629 | -8/Scraptown | Visited The Evicted 3670 | -8/Scraptown | Visited Fellowship of the Rings 3693 | -8/Scraptown | Visited Awakened 3742 | -8/Scraptown | Visited Red Mages 3873 | -8/Scraptown | Visited Observation Area 3921 | -8/Scraptown | Visited Infowarlord's Domain 3931 | -8/Scraptown | Found Exp. Signal Interpreter 3952 | -8/Scraptown | Visited A0-MCA Data Center 3958 | -8/Scraptown | Given a B rating by A0-MCA 3963 | -8/Scraptown | Found A0-MCA's Component Scanner 3993 | -8/Scraptown | Visited Abandonware Association 4027 | -8/Scraptown | Visited LU-1G1's Boring Crew 4044 | -8/Scraptown | Visited Scrap Suit Storage 4051 | -8/Scraptown | Found Scrap Suit 4258 | -8/Scraptown | Visited Chapter 10 4438 | -8/Scraptown | Met Optimus 4438 | -8/Scraptown | Accepted into 0bPrime 4497 | -8/Scraptown | Discovered new exit (range 5) 4502 | -8/Scraptown | Entered Factory 4502 | -6/Factory | Evolved 8 slots: Power x1, Propulsion x2, Utility x5 4504 | -6/Factory | Loaded intel: 112 trap records 4560 | -6/Factory | Scrapoids reinforcements arrived? 4593 | -6/Factory | Found Scrap Suit 4610 | -6/Factory | Lost 3 allies 4654 | -6/Factory | Found Scrap Suit 4759 | -6/Factory | Loaded intel: 7 recycling unit locations 4978 | -6/Factory | Build established: Scavenger-Mutant 5402 | -6/Factory | Build established: Mutant 5743 | -6/Factory | Discovered new exit (range 5) 5748 | -6/Factory | Identified exit to Lower Caves 5772 | -6/Factory | Entered Lower Caves 5996 | -6/Lower Caves | Attracted the attention of an 0b10 checkpoint 6122 | -6/Lower Caves | Learned Factory stockpile data 6345 | -6/Lower Caves | Discovered new exit (range 5) 6347 | -6/Lower Caves | Identified exit to Lower Caves 6491 | -6/Lower Caves | Entered another Lower Caves area 7858 | -6/Lower Caves | Build established: Scavenger-Mutant 7862 | -6/Lower Caves | Discovered new exit (range 7) 7869 | -6/Lower Caves | Identified exit to Zion 7871 | -6/Lower Caves | Entered Zion 7911 | -6/Zion | System corruption cleaned by Quarantine Array 7981 | -6/Zion | Found Prototype Device 7982 | -6/Zion | Identified Mobile Refinery Mk. CCLXVII 8099 | -6/Zion | Visited the Megawrench Repair Shop 8114 | -6/Zion | Megawrench repaired 12 parts 8167 | -6/Zion | Identified exit to Proximity Caves 8176 | -6/Zion | Learned Factory trap positions 8245 | -6/Zion | Found Prototype Device 8246 | -6/Zion | Identified Phasing AFG 8387 | -6/Zion | Build established: Mutant 8399 | -6/Zion | Learned Factory garrison access intel 8583 | -6/Zion | Turned away by Imprinter 9289 | -6/Zion | Entered Proximity Caves 9736 | -5/Proximity Caves | Learned Factory stockpile data 9860 | -5/Proximity Caves | Attracted the attention of an 0b10 checkpoint 10322 | -5/Proximity Caves | Attracted the attention of an 0b10 outpost 10366 | -5/Proximity Caves | Learned Factory interactive machine intel 10625 | -5/Proximity Caves | Discovered new exit (range 7) 10630 | -5/Proximity Caves | Identified exit to Factory 10631 | -5/Proximity Caves | Entered Factory 10631 | -5/Factory | Evolved 2 slots: Utility x2 10632 | -5/Factory | Identified exit to Upper Caves 10633 | -5/Factory | Loaded intel: 61 trap records 10635 | -5/Factory | Loaded intel: 56 interactive machine locations 10636 | -5/Factory | Loaded intel: 4 garrison access locations 10965 | -5/Factory | Build established: Hacker-Mutant 10985 | -5/Factory | Discovered exit to Upper Caves (range 4) 11528 | -5/Factory | Entered Upper Caves 11601 | -5/Upper Caves | Lost 4 parts (1n1u2w) 12477 | -5/Upper Caves | Discovered new exit (range 7) 12489 | -5/Upper Caves | Identified exit to Upper Caves 12520 | -5/Upper Caves | Entered a destroyed Warlord outpost 12650 | -5/Upper Caves | Entered another Upper Caves area 13227 | -5/Upper Caves | Lost 3 parts (1p1u1w) 13573 | -5/Upper Caves | Discovered new exit (range 12) 13587 | -5/Upper Caves | Learned 8 Factory zone layouts 13644 | -5/Upper Caves | Identified exit to Zhirov 13646 | -5/Upper Caves | Entered Zhirov 13648 | -5/Zhirov | Discovered new exit (range 3) 13674 | -5/Zhirov | Met Zhirov 13701 | -5/Zhirov | Learned location of Quarantine (-2) 13701 | -5/Zhirov | Learned location of Testing (-3) 13701 | -5/Zhirov | Learned location of Command (-1) 13716 | -5/Zhirov | Zhirov requested help retrieving the SGEMP Prototype 13756 | -5/Zhirov | Found Alien Artifact 13757 | -5/Zhirov | Identified Integrated Dissipator 13757 | -5/Zhirov | Installed Integrated Dissipator, increased core heat dissipation (+20) 13777 | -5/Zhirov | Found Alien Artifact 13906 | -5/Zhirov | Identified exit to Proximity Caves 13911 | -5/Zhirov | Entered Proximity Caves 14198 | -4/Proximity Caves | Learned location of 2 exits from Research 14471 | -4/Proximity Caves | Build established: Derelict-Mutant 14830 | -4/Proximity Caves | Discovered new exit (range 12) 14850 | -4/Proximity Caves | Identified exit to Factory 14852 | -4/Proximity Caves | Entered Factory 14852 | -4/Factory | Evolved 2 slots: Utility x2 14853 | -4/Factory | Identified exit to Armory 14904 | -4/Factory | Identified Transdimensional Reconstructor 14904 | -4/Factory | Warped through subspace 15277 | -4/Factory | Build established: Hacker-Mutant 15576 | -4/Factory | Scrapoid reinforcements arrived 15893 | -4/Factory | Found Powered Armor 15896 | -4/Factory | Found Powered Armor 16440 | -4/Factory | Found Scrap Suit 16490 | -4/Factory | Lost 5 allies 16559 | -4/Factory | System corruption reached 10% 16606 | -4/Factory | Found Corrupted Scrap Suit 16778 | -4/Factory | System corruption reached 30% 16800 | -4/Factory | Lost 5 parts (4u1w) 16808 | -4/Factory | Destroyed 8 combat bots 16855 | -4/Factory | Build established: Hacker-Scrapper 17040 | -4/Factory | Released all parts (13) 17061 | -4/Factory | Discovered new exit (range 11) 17066 | -4/Factory | Entered Research 17066 | -3/Research | Evolved 2 slots: Propulsion x1, Weapon x1 17067 | -3/Research | Identified exit to Research 17068 | -3/Research | Loaded intel: 74 trap records 17070 | -3/Research | Lost 6 parts (4u2w) 17084 | -3/Research | Spotted B-86 Titan 17100 | -3/Research | Entered another Research area 17100 | -2/Research | Evolved 2 slots: Propulsion x2 17346 | -2/Research | Build established: Mutant 17461 | -2/Research | Core integrity fell below 50% 17478 | -2/Research | Core integrity fell below 20% 17510 | -2/Research | Scrapoid reinforcements arrived 17511 | -2/Research | Lost 9 parts (4n4u1w) 17537 | -2/Research | Destroyed by H-88 Terminator with Heavy Machine Gun Last Messages --------------- 17528_ Slug penetrates Reaction Chamber. 17529_ Acquired Imp. Antigrav System. 17529_ Slug penetrates 02R13-D. 17529_ 02R13-D destroyed. 17529_ Slug penetrates Reaction Chamber. 17529_ Penetrated by Slug. 17530_ P-80 Master resets H-88 Terminator, system corruption cleaned. 17530_ Penetrated by Slug. 17532_ Acquired Imp. Antigrav System. 17532_ Penetrated by Slug. 17532_ Slug penetrates 02R12-D. 17532_ Penetrated by Slug. 17533_ Slug penetrates 02R12-D. 17533_ 02R12-D destroyed. 17533_ Slug penetrates Wall. 17533_ Penetrated by Slug. 17533_ Imp. Antigrav System destroyed. 17533_ Penetrated by Slug. 17537_ Biometal Heavy Treads destroyed. Map ----- +----------------------------------------------------+ | ?????????????????????????????????????????????????? | | ?????????????????????????????????????????????????? | | ?????????????????????????????????????????????????? | | ?????????????????????????????????????????????????? | | ?????????????????????????????????????????????????? | | ?????????????????????????????????????????????????? | | ?????????????????????????????????????????????????? | | ?????????????????????????????????????????????????? | | ?????????????????????????????????????????????????? | | ?????????????????????????????????????????????????? | | ?????????????????????????????????????????????????? | | ?????????????????????????????????????????????????? | | ?????????????????????????????????????????????????? | | ?????????????????????????????????????????????????? | | ?????????????????????????????????????????????????? | | ?????#???????????????????????????????????????????? | | ???? #????????????##############?????????????????? | | ??? ?????????????# #?????????????????? | | ?? ?????????????# #?????????????????? | | ? ??????? ??????# """ #?????????????????? | | +######+###";;##### """*[="" #?????????????????? | | / !!|*!%"" #?????????????????? | | ; [%!!=!!%! #?????????????????? | | =% %= h ==!%%[!= #?????????????????? | | *[ [[[= ; !*|[![* #?????????????????? | | !%![=%h!;! """*@ "" #?????????????????? | | /######/##"*#""#;;# """ "" #?????????????????? | | ! # ! "?# #?????????????????? | | # #?# #?????????????????? | | # #?####""" """###?????????????????? | | # """ #????#"""T"""#???????????????????? | | # """ #????#########???????????????????? | | #!! """ #????????????????????????????????? | | ]] #!! #????????????????????????????????? | | ]] #!! = #????????????????????????????????? | | ] " #########????????????????????????????????? | | #########????????????????????????????????????????? | | ?????????????????????????????????????????????????? | | ?????????????????????????????????????????????????? | | ?????????????????????????????????????????????????? | | ?????????????????????????????????????????????????? | | ?????????????????????????????????????????????????? | | ?????????????????????????????????????????????????? | | ?????????????????????????????????????????????????? | | ?????????????????????????????????????????????????? | | ?????????????????????????????????????????????????? | | ?????????????????????????????????????????????????? | | ?????????????????????????????????????????????????? | | ?????????????????????????????????????????????????? | | ?????????????????????????????????????????????????? | +----------------------------------------------------+ Best States ------------- Heat Dissipation 113 Energy Generation 44 Energy Capacity 410 Matter Stores 300 Matter Capacity 400 Sight Range 16 Robot Scan Range 16 Terrain Scan Density 10 Power Amplification 40 Base Temperature (-) 200 Armor Coverage 800 Resistance: KI 10 Propulsion Shielding 90 Phase Shifting 5 Evasion (%) 65 Recoil Reduction 2 Matter Filtering 50 Offensive Hacking 26 Defensive Hacking 23 Item Schematics ----------------- Assault Drone Bay | -5/Zhirov | Free Exp. Heat Sink | -5/Zhirov | Free Exp. Optical Array | -5/Zhirov | Free Imp. Arc Thrower | -5/Zhirov | Free Robot Schematics ------------------ None Fabricated ------------ Nothing Repaired ---------- Nothing Studied --------- None Alien Tech Used ----------------- Integrated Dissipator Transdimensional Reconstructor Achievements -------------- Streaker Challenges ------------ None Game ------ Seed MissileFissionSource Manual? 0 Play Time 02:30:50 Cumulative 95.7 hours Start 2026.03.02 @ 21:48:14 End 2026.03.03 @ 13:58:07 Sessions 5 Manual Loads 0 Difficulty Rogue Special Mode None Game No. 91 Rogue 91 Adventurer 0 Explorer 0 Win Type - Total 0 Types 0/0/0/0/0/0/0/0/0/0 Lore% 63 Gallery% 48 Achievement% 39 Wizard Run 0 Options --------- Layout 1 ASCII 0 Keyboard 0 Movement Mouse Keybinds 0 Fullscreen 1 Font 24/Swanston Map View 50x35 Zoom Use 0% Tactical HUD 1 Map Filters NONE Filters NONE Steam 1 RUN: 40ee363b-3dc5-4622-804b-c146a673b10f